[Event "9. Korbacher Open 2017"]
[Site "Korbach"]
[Date "2017.10.22"]
[Round "7"]
[White "Li, Zhuoling"]
[Black "Ohst, Holger"]
[Result "1-0"]
[WhiteElo "2007"]
[BlackElo "1986"]
[Annotator "NA RC"]
[PlyCount "177"]
[EventDate "2017.??.??"]
[EventType "swiss"]
[EventCountry "GER"]
[SourceTitle "playchess.com"]
[Source "ChessBase"]
[SourceQuality "1"]
[TimeControl "40/5400+30:1800+30"]

1. e4 {[%emt 0:00:00]} c5 {[%emt 0:00:19]} 2. Nf3 {[%emt 0:00:00]} e6 {[%emt 0:00:20]} 3. d4 {[%emt 0:00:00]} cxd4 {[%emt 0:00:01]} 4. Nxd4 {[%emt 0:00:00]} Nf6 {[%emt 0:00:06]} 5. Bd3 {[%emt 0:00:18]} Nc6 {[%emt 0:00:35]} 6. Nxc6 {[%emt 0:00:26]} bxc6 {[%emt 0:00:03]} 7. O-O {[%emt 0:00:12]} Be7 {[%emt 0:04:28]} 8. e5 {[%emt 0:03:47] B40: Sicilian: 2...e6, Unusual lines} Nd5 {[%emt 0:00:17]} 9. Qg4 {[%emt 0:01:15]} g6 {[%emt 0:14:22]} 10. Bh6 {[%emt 0:05:13]} f5 $146 {[%emt 0:12:41]} ({Predecessor:} 10... Bf8 11. Bxf8 Rxf8 12. Nd2 f5 13. Qf3 Nb6 14. Rad1 Qc7 15. Rfe1 Bb7 {1-0 (28) Liu,Y (2009)-Sair,S (1715) Baku 2016}) 11. exf6 {[%emt 0:02:24]} Bxf6 {[%emt 0:00:39]} 12. Nc3 {[%emt 0:03:43]} Nxc3 {[%emt 0:05:14]} 13. bxc3 {[%emt 0:00:06]} Qe7 {[%emt 0:07:40]} 14. Rae1 {[%emt 0:07:25]} Bg7 {[%emt 0:07:47]} 15. Bxg7 {[%emt 0:09:44]} Qxg7 {[%emt 0:00:05]} 16. h4 {[%emt 0:00:29]} O-O {[%emt 0:04:32]} 17. h5 {[%emt 0:01:26]} g5 {[%emt 0:20:08]} 18. h6 {[%emt 0:01:48]} Qxh6 {[%emt 0:02:58]} 19. Re5 {[%emt 0:00:54]} Kf7 {[%emt 0:05:56]} 20. Rxg5 {[%emt 0:02:22]} Ke8 {[%emt 0:03:02]} 21. Rh5 {[%emt 0:08:35]} Qf6 {[%emt 0:00:26]} 22. Rxh7 {[%emt 0:01:01]} Kd8 {[%emt 0:00:33]} 23. Qg3 {[%emt 0:08:12]} Qxc3 {[%emt 0:05:01]} 24. Qd6 {[%emt 0:01:00]} Qf6 {[%emt 0:00:22]} 25. Be4 {[%emt 0:03:59]} e5 {[%emt 0:00:42]} 26. Qd2 {[%emt 0:03:20]} a5 {[%emt 0:01:25]} 27. Rd1 {[%emt 0:01:17]} Ra7 {[%emt 0:00:50]} 28. Qe3 {[%emt 0:00:37]} Ra6 {[%emt 0:00:39]} 29. Bd3 {[%emt 0:05:20]} Ra8 {[%emt 0:01:03]} 30. Rh6 {[%emt 0:03:17]} Qf4 {[%emt 0:00:19]} 31. Qb6+ {[%emt 0:00:20]} Ke7 {[%emt 0:00:18]} 32. Qc5+ {[%emt 0:01:26]} Kd8 {[%emt 0:00:14]} 33. Rh7 {[%emt 0:09:45]} Rf7 {[%emt 0:00:45]} 34. Rh8+ {[%emt 0:01:03]} Kc7 {[%emt 0:00:11]} 35. Bc4 {[%emt 0:02:24]} Rf6 {[%emt 0:00:04]} 36. g3 {[%emt 0:06:24]} Rg6 {[%emt 0:01:41]} 37. Kf1 {[%emt 0:03:23]} Qf6 {[%emt 0:01:14]} 38. Rf8 {[%emt 0:00:25]} Qg7 {[%emt 0:00:12]} 39. Rb1 {[%emt 0:01:21]} Rg4 {[%emt 0:01:13]} 40. Qb6+ {[%emt 0:01:21]} Kd6 {[%emt 0:30:12]} 41. Rd1+ {[%emt 0:30:18]} Rd4 {[%emt 0:00:41]} 42. Rxd4+ {[%emt 0:00:13]} exd4 {[%emt 0:00:03]} 43. Rf4 {[%emt 0:00:20]} Qe5 {[%emt 0:00:00]} 44. Bd3 {[%emt 0:00:00]} Qh5 {[%emt 0:00:00]} 45. Rxd4+ {[%emt 0:00:00]} Ke7 {[%emt 0:00:00]} 46. Rh4 {[%emt 0:00:00]} Qg5 {[%emt 0:00:00]} 47. Re4+ {[%emt 0:00:00]} Kd6 {[%emt 0:00:00]} 48. c4 {[%emt 0:00:00]} Ba6 {[%emt 0:00:00]} 49. Kg2 {[%emt 0:00:00]} Qd8 {[%emt 0:00:00]} 50. c5+ {[%emt 0:00:00]} Kd5 {[%emt 0:00:00]} 51. Qb2 {[%emt 0:00:00]} Qh8 {[%emt 0:00:00]} 52. Qe2 {[%emt 0:00:00]} Bxd3 {[%emt 0:00:00]} 53. Qxd3+ {[%emt 0:00:00]} Kxc5 {[%emt 0:00:00]} 54. Rc4+ Kb6 55. Qxd7 {[%emt 0:00:00]} Qc8 {[%emt 0:00:00]} 56. Qd4+ {[%emt 0:00:00]} c5 {[%emt 0:00:00]} 57. Qb2+ {[%emt 0:00:00]} Ka6 {[%emt 0:00:00]} 58. Qe2 {[%emt 0:00:00]} Kb6 {[%emt 0:00:00]} 59. a4 {[%emt 0:00:29]} Qc6+ {[%emt 0:00:00]} 60. Qf3 {[%emt 0:00:51]} Rf8 {[%emt 0:02:56]} 61. Qxc6+ {[%emt 0:00:58]} Kxc6 {[%emt 0:00:02]} 62. f4 {[%emt 0:00:19]} Kd5 {[%emt 0:00:06]} 63. Rc1 {[%emt 0:00:16]} Kd4 {[%emt 0:00:33]} 64. Kf3 {[%emt 0:00:45]} c4 {[%emt 0:00:40]} 65. g4 {[%emt 0:00:29]} Kd3 {[%emt 0:01:34]} 66. g5 {[%emt 0:00:29]} c3 {[%emt 0:00:11]} 67. g6 {[%emt 0:01:53]} Kd2 {[%emt 0:02:32]} 68. Rg1 {[%emt 0:00:13]} c2 {[%emt 0:00:41]} 69. Rg2+ {[%emt 0:00:54]} Kd3 {[%emt 0:00:16]} 70. Rxc2 {[%emt 0:00:20]} Kxc2 {[%emt 0:00:05]} 71. Ke4 {[%emt 0:00:11]} Kb3 {[%emt 0:00:45]} 72. f5 {[%emt 0:00:14]} Re8+ {[%emt 0:00:22]} 73. Kd5 {[%emt 0:02:23]} Kxa4 {[%emt 0:02:06]} 74. f6 {[%emt 0:00:35]} Kb3 {[%emt 0:01:06]} 75. f7 {[%emt 0:03:07]} Rd8+ {[%emt 0:01:17]} 76. Kc5 {[%emt 0:00:29]} a4 {[%emt 0:00:38]} 77. g7 {[%emt 0:00:07]} Rc8+ {[%emt 0:00:08]} 78. Kd4 {[%emt 0:00:21]} Rd8+ {[%emt 0:00:56]} 79. Ke3 {[%emt 0:00:30]} a3 {[%emt 0:00:43]} 80. g8=Q {[%emt 0:00:17]} Rxg8 {[%emt 0:00:11]} 81. fxg8=Q+ {[%emt 0:00:06]} Kb2 {[%emt 0:00:13]} 82. Qg7+ {[%emt 0:01:06]} Kb1 {[%emt 0:00:07]} 83. Qg6+ {[%emt 0:00:22]} Kc1 {[%emt 0:00:39]} 84. Qf6 {[%emt 0:00:47]} Kb1 {[%emt 0:00:05]} 85. Qf5+ {[%emt 0:00:11]} Kb2 {[%emt 0:00:13]} 86. Qe5+ {[%emt 0:00:18]} Kb1 {[%emt 0:00:19]} 87. Qe4+ {[%emt 0:00:08]} Kc1 {[%emt 0:00:33]} 88. Qc4+ {[%emt 0:00:44]} Kb2 {[%emt 0:00:07]} 89. Qb4+ {[%emt 0:00:12]} 1-0

[Event "9. Korbacher Open 2017"]
[Site "Korbach"]
[Date "2017.10.22"]
[Round "7"]
[White "Van der Meiden, Dirk"]
[Black "Hansen, Flemming Haupt"]
[Result "1-0"]
[ECO "B12"]
[WhiteElo "1958"]
[BlackElo "2121"]
[Annotator "NA"]
[PlyCount "78"]
[EventDate "2017.??.??"]
[EventType "swiss"]
[EventCountry "GER"]
[SourceTitle "playchess.com"]
[Source "ChessBase"]
[SourceQuality "1"]
[TimeControl "40/5400+30:1800+30"]

1. e4 {[%emt 0:00:00]} c6 {[%emt 0:01:25]} 2. d4 {[%emt 0:00:00]} d5 {[%emt 0:00:06]} 3. e5 {[%emt 0:00:39]} Bf5 {[%emt 0:00:56]} 4. Nf3 {[%emt 0:00:09]} e6 {[%emt 0:00:11]} 5. Be2 {[%emt 0:00:08]} c5 {[%emt 0:00:19]} 6. c4 {[%emt 0:01:28]} cxd4 {[%emt 0:02:18]} 7. Nxd4 {[%emt 0:00:18]} Bxb1 {[%emt 0:00:09]} 8. Rxb1 {[%emt 0:01:50]} Bb4+ {[%emt 0:02:10]} 9. Bd2 {[%emt 0:02:29]} Bxd2+ {[%emt 0:00:08]} 10. Qxd2 {[%emt 0:00:24]} Ne7 {[%emt 0:00:19]} 11. O-O {[%emt 0:02:47]} O-O {[%emt 0:00:55]} 12. Bf3 {[%emt 0:01:37]} Nbc6 {[%emt 0:04:20]} 13. cxd5 {[%emt 0:03:55]} exd5 {[%emt 0:03:56]} 14. Rfe1 {[%emt 0:03:36]} Qb6 {[%emt 0:00:56]} 15. Rbd1 {[%emt 0:01:59]} Rfe8 {[%emt 0:17:37]} 16. e6 {[%emt 0:15:24]} f6 {[%emt 0:00:23]} 17. g3 {[%emt 0:05:18]} a5 {[%emt 0:03:50]} 18. Bg2 {[%emt 0:07:41]} a4 {[%emt 0:01:53]} 19. h4 {[%emt 0:11:38]} Ne5 {[%emt 0:07:01]} 20. b3 {[%emt 0:01:15]} axb3 {[%emt 0:01:58]} 21. axb3 {[%emt 0:00:19]} Rad8 {[%emt 0:00:42]} 22. Kh1 {[%emt 0:08:37]} N7c6 {[%emt 0:04:41]} 23. f4 {[%emt 0:04:34]} Ng4 {[%emt 0:01:32]} 24. f5 {[%emt 0:03:15]} Qc7 {[%emt 0:02:36]} 25. Re3 {[%emt 0:10:21]} Nxd4 {[%emt 0:03:10]} 26. Qxd4 {[%emt 0:00:29]} Nf2+ {[%emt 0:00:07]} 27. Kh2 {[%emt 0:01:31]} Nxd1 {[%emt 0:00:35]} 28. Qxd1 {[%emt 0:00:02]} d4 {[%emt 0:00:19]} 29. Rd3 {[%emt 0:00:48]} Qe5 {[%emt 0:01:01]} 30. Bxb7 {[%emt 0:01:13]} Qxf5 {[%emt 0:00:14]} 31. Bg2 {[%emt 0:02:17]} Qe5 {[%emt 0:01:35]} 32. Bh3 {[%emt 0:03:41]} f5 {[%emt 0:02:22]} 33. Qf3 {[%emt 0:00:20]} g6 {[%emt 0:00:13]} 34. Rd2 {[%emt 0:01:43]} Rxe6 {[%emt 0:03:44]} 35. Bf1 {[%emt 0:00:12]} Qe3 {[%emt 0:01:01]} 36. Qd1 {[%emt 0:01:08]} Kg7 {[%emt 0:00:47]} 37. Bc4 {[%emt 0:01:03]} Re4 {[%emt 0:00:41]} 38. Ra2 {[%emt 0:01:10]} f4 {[%emt 0:00:25]} 39. Ra7+ {[%emt 0:00:20]} Kh6 {[%emt 0:00:08]} 1-0

[Event "9. Korbacher Open 2017"]
[Site "Korbach"]
[Date "2017.10.22"]
[Round "7"]
[White "Bluebaum, Johanna"]
[Black "Powalla, Christian"]
[Result "1-0"]
[ECO "A59"]
[WhiteElo "1955"]
[BlackElo "1816"]
[Annotator "NA"]
[PlyCount "60"]
[EventDate "2017.??.??"]
[EventType "swiss"]
[EventCountry "GER"]
[SourceTitle "playchess.com"]
[Source "ChessBase"]
[SourceQuality "1"]
[TimeControl "40/5400+30:1800+30"]

1. d4 {[%emt 0:01:30]} Nf6 {[%emt 0:00:04]} 2. c4 {[%emt 0:00:14]} c5 {[%emt 0:00:05]} 3. d5 {[%emt 0:00:04]} b5 {[%emt 0:00:04]} 4. cxb5 {[%emt 0:00:08]} a6 {[%emt 0:00:06]} 5. bxa6 {[%emt 0:00:04]} g6 {[%emt 0:00:23]} 6. Nc3 {[%emt 0:00:16]} Bxa6 {[%emt 0:00:09]} 7. e4 {[%emt 0:00:07]} Bxf1 {[%emt 0:00:05]} 8. Kxf1 {[%emt 0:00:02]} d6 {[%emt 0:00:17]} 9. g3 {[%emt 0:00:25]} Bg7 {[%emt 0:00:29]} 10. Nf3 {[%emt 0:00:12]} Nbd7 {[%emt 0:00:22]} 11. Kg2 {[%emt 0:00:09]} O-O {[%emt 0:00:08]} 12. a4 {[%emt 0:00:49]} Ra6 {[%emt 0:00:53]} 13. Qc2 {[%emt 0:03:18]} Qa8 {[%emt 0:02:21]} 14. Ra3 {[%emt 0:02:12]} Rb8 {[%emt 0:00:19]} 15. Nb5 {[%emt 0:00:54]} Ne8 {[%emt 0:08:00]} 16. Nd2 {[%emt 0:03:07]} e6 {[%emt 0:04:08]} 17. dxe6 {[%emt 0:09:21]} fxe6 {[%emt 0:01:11]} 18. Re1 {[%emt 0:00:41]} Qc6 {[%emt 0:07:42]} 19. Nf3 {[%emt 0:01:07]} d5 {[%emt 0:02:46]} 20. exd5 {[%emt 0:00:35]} exd5 {[%emt 0:00:34]} 21. Bf4 {[%emt 0:00:35]} Rc8 {[%emt 0:03:27]} 22. Rae3 {[%emt 0:01:14]} Nef6 {[%emt 0:03:15]} 23. b3 {[%emt 0:05:08]} Ne4 {[%emt 0:02:33]} 24. Kg1 {[%emt 0:03:49]} Ndf6 {[%emt 0:01:39]} 25. Ne5 {[%emt 0:00:37]} Qb7 {[%emt 0:08:42]} 26. f3 {[%emt 0:01:23]} d4 {[%emt 0:01:21]} 27. Rxe4 {[%emt 0:00:58]} Nxe4 {[%emt 0:00:30]} 28. Qc4+ {[%emt 0:00:48]} Kf8 {[%emt 0:00:30]} 29. Rxe4 {[%emt 0:00:18]} Rf6 {[%emt 0:05:44]} 30. Ng4 {[%emt 0:00:33]} Qa8 1-0

[Event "9. Korbacher Open 2017"]
[Site "Korbach"]
[Date "2017.10.22"]
[Round "7"]
[White "Nemetz, Markus"]
[Black "Rutz, Matthias"]
[Result "1/2-1/2"]
[ECO "E04"]
[WhiteElo "1951"]
[BlackElo "2046"]
[Annotator "NA"]
[PlyCount "25"]
[EventDate "2017.??.??"]
[EventType "swiss"]
[EventCountry "GER"]
[SourceTitle "playchess.com"]
[Source "ChessBase"]
[SourceQuality "1"]
[TimeControl "40/5400+30:1800+30"]

1. d4 {[%emt 0:00:00]} d5 {[%emt 0:00:31]} 2. Nf3 {[%emt 0:00:00]} Nf6 {[%emt 0:00:21]} 3. c4 {[%emt 0:00:00]} e6 {[%emt 0:00:25]} 4. g3 {[%emt 0:00:04]} dxc4 {[%emt 0:01:20]} 5. Bg2 {[%emt 0:00:44]} Bd7 {[%emt 0:01:32]} 6. Nbd2 {[%emt 0:04:38]} Bc6 {[%emt 0:04:41]} 7. Nxc4 {[%emt 0:01:14]} Bb4+ {[%emt 0:04:30]} 8. Bd2 {[%emt 0:02:34]} Bxd2+ {[%emt 0:00:27]} 9. Qxd2 {[%emt 0:00:31]} Be4 {[%emt 0:05:10]} 10. O-O {[%emt 0:02:54]} O-O {[%emt 0:01:15]} 11. Rfd1 {[%emt 0:04:52]} Qd5 {[%emt 0:07:11]} 12. Ne3 {[%emt 0:03:58]} Qd6 {[%emt 0:04:33]} 13. Nc4 {[%emt 0:01:29]} 1/2-1/2

[Event "9. Korbacher Open 2017"]
[Site "Korbach"]
[Date "2017.10.22"]
[Round "7"]
[White "Wachsmann, Dietmar"]
[Black "Rubina, Tatiana"]
[Result "1-0"]
[ECO "B77"]
[WhiteElo "1930"]
[BlackElo "2022"]
[Annotator "NA"]
[PlyCount "85"]
[EventDate "2017.??.??"]
[EventType "swiss"]
[EventCountry "GER"]
[SourceTitle "playchess.com"]
[Source "ChessBase"]
[SourceQuality "1"]
[TimeControl "40/5400+30:1800+30"]

1. e4 {[%emt 0:00:00]} c5 {[%emt 0:00:07]} 2. Nf3 {[%emt 0:00:00]} d6 {[%emt 0:00:05]} 3. d4 {[%emt 0:00:00]} cxd4 {[%emt 0:00:03]} 4. Nxd4 {[%emt 0:00:00]} Nf6 {[%emt 0:00:05]} 5. Nc3 {[%emt 0:00:00]} g6 {[%emt 0:00:05]} 6. Be3 {[%emt 0:01:21]} Bg7 {[%emt 0:00:12]} 7. f3 {[%emt 0:01:51]} O-O {[%emt 0:00:34]} 8. Bc4 {[%emt 0:01:33]} Nc6 {[%emt 0:02:29]} 9. Qd2 {[%emt 0:02:20]} Na5 {[%emt 0:03:36]} 10. Be2 {[%emt 0:04:15]} a6 {[%emt 0:08:43]} 11. Bh6 {[%emt 0:08:28]} Qc7 {[%emt 0:05:56]} 12. O-O-O {[%emt 0:05:08]} b5 {[%emt 0:01:50]} 13. h4 {[%emt 0:02:36]} Bxh6 {[%emt 0:16:30]} 14. Qxh6 {[%emt 0:00:02]} e5 {[%emt 0:00:48]} 15. Nf5 {[%emt 0:04:29]} Bxf5 {[%emt 0:00:17]} 16. exf5 {[%emt 0:00:32]} Rac8 {[%emt 0:00:55]} 17. Bd3 {[%emt 0:03:40]} d5 {[%emt 0:05:12]} 18. g4 {[%emt 0:05:56]} e4 {[%emt 0:07:54]} 19. fxe4 {[%emt 0:02:53]} dxe4 {[%emt 0:07:03]} 20. Nxe4 {[%emt 0:01:29]} Nxe4 {[%emt 0:00:10]} 21. Bxe4 {[%emt 0:00:54]} Qe5 {[%emt 0:00:50]} 22. Bd3 {[%emt 0:14:26]} Nc4 {[%emt 0:05:06]} 23. Bxc4 {[%emt 0:01:05]} Rxc4 {[%emt 0:00:02]} 24. fxg6 {[%emt 0:07:21]} hxg6 {[%emt 0:04:08]} 25. Rhe1 {[%emt 0:04:25]} Qc5 {[%emt 0:02:17]} 26. h5 {[%emt 0:00:43]} Rxg4 {[%emt 0:02:32]} 27. hxg6 {[%emt 0:00:36]} Rxg6 {[%emt 0:00:13]} 28. Qh2 {[%emt 0:01:24]} Qg5+ {[%emt 0:03:24]} 29. Kb1 {[%emt 0:02:39]} Qh6 {[%emt 0:00:15]} 30. Qe5 {[%emt 0:01:30]} Qg7 {[%emt 0:04:05]} 31. Qc5 {[%emt 0:01:02]} Qf6 {[%emt 0:02:28]} 32. Rh1 {[%emt 0:01:24]} Rd8 {[%emt 0:01:53]} 33. Rdf1 {[%emt 0:03:01]} Qd4 {[%emt 0:04:07]} 34. Qe7 {[%emt 0:01:33]} Rf8 {[%emt 0:02:51]} 35. Rd1 {[%emt 0:04:26]} Qf6 {[%emt 0:01:31]} 36. Qe3 {[%emt 0:01:37]} Rd8 {[%emt 0:00:57]} 37. Rxd8+ {[%emt 0:03:37]} Qxd8 {[%emt 0:00:01]} 38. Qe5 {[%emt 0:00:47]} Rg7 {[%emt 0:01:32]} 39. Qh2 {[%emt 0:04:40]} Kf8 {[%emt 0:00:27]} 40. Qh8+ {[%emt 0:01:15]} Rg8 {[%emt 0:30:18]} 41. Qh6+ {[%emt 0:30:15]} Rg7 {[%emt 0:00:54]} 42. Rg1 {[%emt 0:00:40]} Qd4 {[%emt 0:00:15]} 43. Qh8+ {[%emt 0:00:08]} 1-0

[Event "9. Korbacher Open 2017"]
[Site "Korbach"]
[Date "2017.10.22"]
[Round "7"]
[White "Hagedorn, Alfons"]
[Black "Koerber, Thomas"]
[Result "1-0"]
[ECO "C50"]
[WhiteElo "1923"]
[BlackElo "1857"]
[Annotator "NA"]
[PlyCount "69"]
[EventDate "2017.??.??"]
[EventType "swiss"]
[EventCountry "GER"]
[SourceTitle "playchess.com"]
[Source "ChessBase"]
[SourceQuality "1"]
[TimeControl "40/5400+30:1800+30"]

1. e4 {[%emt 0:00:00]} Nc6 {[%emt 0:00:25]} 2. Nf3 {[%emt 0:00:00]} e5 {[%emt 0:01:13]} 3. Bc4 {[%emt 0:00:00]} Be7 {[%emt 0:00:48]} 4. O-O {[%emt 0:00:47]} Nf6 {[%emt 0:00:21]} 5. d3 {[%emt 0:01:08]} h6 {[%emt 0:02:22]} 6. Nc3 {[%emt 0:00:20]} d6 {[%emt 0:01:11]} 7. h3 {[%emt 0:00:15]} Na5 {[%emt 0:00:38]} 8. Bb3 {[%emt 0:00:32]} Nxb3 {[%emt 0:00:24]} 9. axb3 {[%emt 0:00:07]} c6 {[%emt 0:00:14]} 10. Re1 {[%emt 0:01:28]} O-O {[%emt 0:00:13]} 11. Bd2 {[%emt 0:02:04]} b5 {[%emt 0:00:23]} 12. Ne2 {[%emt 0:00:50]} Bb7 {[%emt 0:00:14]} 13. Be3 {[%emt 0:00:36]} a6 {[%emt 0:00:40]} 14. Ng3 {[%emt 0:00:26]} Bc8 {[%emt 0:00:44]} 15. Qd2 {[%emt 0:00:26]} Bd7 {[%emt 0:03:32]} 16. Nh2 {[%emt 0:01:36]} Qc7 {[%emt 0:02:22]} 17. f4 {[%emt 0:00:34]} exf4 {[%emt 0:01:48]} 18. Bxf4 {[%emt 0:02:04]} Kh7 {[%emt 0:01:29]} 19. Nf3 {[%emt 0:03:21]} Ng8 {[%emt 0:00:36]} 20. d4 {[%emt 0:04:20]} Qd8 {[%emt 0:01:08]} 21. Rad1 {[%emt 0:01:26]} Re8 {[%emt 0:02:18]} 22. e5 {[%emt 0:04:19]} d5 {[%emt 0:01:02]} 23. Qd3+ {[%emt 0:01:50]} g6 {[%emt 0:00:10]} 24. e6 {[%emt 0:00:44]} Bxe6 {[%emt 0:00:58]} 25. Rxe6 {[%emt 0:00:08]} Bf6 {[%emt 0:04:21]} 26. Rxe8 {[%emt 0:01:56]} Qxe8 {[%emt 0:00:07]} 27. Re1 {[%emt 0:00:52]} Qd8 {[%emt 0:00:52]} 28. Ne5 {[%emt 0:02:44]} Bxe5 {[%emt 0:01:27]} 29. dxe5 {[%emt 0:01:46]} Qh4 {[%emt 0:00:29]} 30. Qf3 {[%emt 0:01:05]} Re8 {[%emt 0:00:31]} 31. Bd2 {[%emt 0:06:57]} Kg7 {[%emt 0:01:32]} 32. c3 {[%emt 0:03:38]} Re6 {[%emt 0:00:26]} 33. Be3 {[%emt 0:02:41]} Ne7 {[%emt 0:00:29]} 34. Bd4 {[%emt 0:00:42]} Kg8 {[%emt 0:01:02]} 35. Rf1 {[%emt 0:00:34]} 1-0

[Event "9. Korbacher Open 2017"]
[Site "Korbach"]
[Date "2017.10.22"]
[Round "7"]
[White "Buese, Ralf"]
[Black "Held, Martin"]
[Result "1/2-1/2"]
[ECO "D00"]
[WhiteElo "1892"]
[BlackElo "1821"]
[Annotator "NA"]
[PlyCount "31"]
[EventDate "2017.??.??"]
[EventType "swiss"]
[EventCountry "GER"]
[SourceTitle "playchess.com"]
[Source "ChessBase"]
[SourceQuality "1"]
[TimeControl "40/5400+30:1800+30"]

1. d4 {[%emt 0:00:00]} d5 {[%emt 0:00:46]} 2. Bf4 {[%emt 0:00:00]} Nf6 {[%emt 0:01:08]} 3. e3 {[%emt 0:00:00]} Bf5 {[%emt 0:01:30]} 4. c4 {[%emt 0:00:18]} c6 {[%emt 0:05:48]} 5. Nc3 {[%emt 0:00:13]} e6 {[%emt 0:01:11]} 6. Qb3 {[%emt 0:02:45]} Qb6 {[%emt 0:05:44]} 7. c5 {[%emt 0:01:03]} Qxb3 {[%emt 0:00:58]} 8. axb3 {[%emt 0:00:05]} Nbd7 {[%emt 0:02:59]} 9. Nf3 {[%emt 0:03:59]} h6 {[%emt 0:04:39]} 10. h3 {[%emt 0:00:15]} Be7 {[%emt 0:02:04]} 11. b4 {[%emt 0:00:12]} O-O {[%emt 0:07:02]} 12. b5 {[%emt 0:01:15]} cxb5 {[%emt 0:10:40]} 13. Nxb5 {[%emt 0:04:29]} a6 {[%emt 0:00:38]} 14. Nd6 {[%emt 0:00:10]} Bxd6 {[%emt 0:00:50]} 15. Bxd6 {[%emt 0:00:26]} Rfe8 {[%emt 0:01:07]} 16. Ra3 {[%emt 0:22:55]} 1/2-1/2

[Event "9. Korbacher Open 2017"]
[Site "Korbach"]
[Date "2017.10.22"]
[Round "7"]
[White "Launert, Martin"]
[Black "Naujocks, Christian"]
[Result "1-0"]
[ECO "C64"]
[WhiteElo "1879"]
[BlackElo "1654"]
[Annotator "NA"]
[PlyCount "77"]
[EventDate "2017.??.??"]
[EventType "swiss"]
[EventCountry "GER"]
[SourceTitle "playchess.com"]
[Source "ChessBase"]
[SourceQuality "1"]
[TimeControl "40/5400+30:1800+30"]

1. e4 {[%emt 0:00:00]} e5 {[%emt 0:00:09]} 2. Nf3 {[%emt 0:00:00]} Nc6 {[%emt 0:00:17]} 3. Bb5 {[%emt 0:00:24]} Bc5 {[%emt 0:00:18]} 4. d3 {[%emt 0:04:58]} Nf6 {[%emt 0:01:51]} 5. O-O {[%emt 0:01:40]} O-O {[%emt 0:00:12]} 6. c3 {[%emt 0:01:43]} Re8 {[%emt 0:01:48]} 7. Bg5 {[%emt 0:02:55]} d6 {[%emt 0:01:11]} 8. h3 {[%emt 0:02:17]} Bd7 {[%emt 0:02:11]} 9. Nbd2 h6 10. Bh4 {[%emt 0:01:54]} a6 {[%emt 0:03:56]} 11. Ba4 {[%emt 0:00:32]} b5 {[%emt 0:00:46]} 12. Bc2 Kh8 {[%emt 0:05:11]} 13. b4 {[%emt 0:03:32]} Bb6 {[%emt 0:01:42]} 14. a4 {[%emt 0:00:36]} Rg8 {[%emt 0:03:35]} 15. axb5 {[%emt 0:02:53]} axb5 {[%emt 0:00:33]} 16. Nb3 {[%emt 0:07:17]} Rxa1 {[%emt 0:02:37]} 17. Qxa1 {[%emt 0:00:05]} g5 {[%emt 0:00:11]} 18. Bg3 {[%emt 0:02:03]} Nh5 {[%emt 0:07:05]} 19. Kh2 {[%emt 0:22:35]} Nxg3 {[%emt 0:03:29]} 20. fxg3 {[%emt 0:02:35]} Ne7 {[%emt 0:03:57]} 21. c4 {[%emt 0:02:59]} Be3 {[%emt 0:09:05]} 22. g4 {[%emt 0:08:39]} Ng6 {[%emt 0:02:18]} 23. Re1 {[%emt 0:02:47]} Bf2 {[%emt 0:02:36]} 24. Re2 {[%emt 0:00:32]} Bh4 {[%emt 0:02:54]} 25. g3 {[%emt 0:03:40]} Qf6 {[%emt 0:01:14]} 26. Nbd2 {[%emt 0:02:22]} Nf4 {[%emt 0:11:06]} 27. gxf4 {[%emt 0:02:11]} Qxf4+ {[%emt 0:00:11]} 28. Kh1 {[%emt 0:00:30]} h5 {[%emt 0:03:08]} 29. Nxh4 {[%emt 0:02:56]} gxh4 {[%emt 0:00:27]} 30. Qf1 {[%emt 0:01:47]} Qxf1+ {[%emt 0:05:00]} 31. Nxf1 {[%emt 0:00:06]} hxg4 {[%emt 0:00:19]} 32. hxg4 {[%emt 0:01:37]} Bxg4 {[%emt 0:01:09]} 33. Rf2 {[%emt 0:00:10]} Rg7 {[%emt 0:01:20]} 34. Nh2 {[%emt 0:00:20]} Bd7 {[%emt 0:02:45]} 35. Rg2 {[%emt 0:01:49]} Rh7 {[%emt 0:01:39]} 36. Ng4 {[%emt 0:03:57]} h3 {[%emt 0:08:09]} 37. Rg3 {[%emt 0:00:34]} Rg7 38. Rxh3+ Kg8 39. Nf6+ 1-0

[Event "9. Korbacher Open 2017"]
[Site "Korbach"]
[Date "2017.10.22"]
[Round "7"]
[White "Lehmann, Tim"]
[Black "Hild, Sebastian"]
[Result "1/2-1/2"]
[ECO "D00"]
[WhiteElo "1865"]
[BlackElo "1786"]
[Annotator "NA"]
[PlyCount "33"]
[EventDate "2017.??.??"]
[EventType "swiss"]
[EventCountry "GER"]
[SourceTitle "playchess.com"]
[Source "ChessBase"]
[SourceQuality "1"]
[TimeControl "40/5400+30:1800+30"]

1. d4 {[%emt 0:00:00]} d5 {[%emt 0:00:11]} 2. Bf4 {[%emt 0:00:00]} Nf6 {[%emt 0:00:36]} 3. e3 {[%emt 0:00:00]} e6 {[%emt 0:03:53]} 4. Nf3 {[%emt 0:01:02]} Be7 {[%emt 0:00:07]} 5. c3 {[%emt 0:00:08]} O-O {[%emt 0:00:24]} 6. Nbd2 {[%emt 0:00:18]} b6 {[%emt 0:00:15]} 7. Ne5 {[%emt 0:02:25]} Bb7 {[%emt 0:00:26]} 8. Bd3 {[%emt 0:00:35]} Nbd7 {[%emt 0:08:22]} 9. h4 {[%emt 0:09:11]} c5 {[%emt 0:07:00]} 10. Ndf3 {[%emt 0:02:55]} Ne4 {[%emt 0:03:02]} 11. Ng5 {[%emt 0:03:02]} Nxe5 {[%emt 0:05:49]} 12. dxe5 {[%emt 0:00:29]} h6 {[%emt 0:01:24]} 13. Nh3 {[%emt 0:18:21]} c4 {[%emt 0:12:49]} 14. Bb1 {[%emt 0:01:22]} f5 {[%emt 0:04:21]} 15. exf6 {[%emt 0:02:29]} Nxf6 {[%emt 0:04:48]} 16. Qc2 {[%emt 0:00:22]} Ne4 {[%emt 0:02:00]} 17. f3 {[%emt 0:09:48]} 1/2-1/2